fUSD/lending_fUSD_20260612
["ID","MTS","AMOUNT","RATE_DAILY","PERIOD"]
[424840451,1781194261000,-1000.88383104,0.00015,2]
[424840454,1781194261000,-845.0235,0.00015,2]
[424840453,1781194261000,-1924.777,0.00015,2]
[424840456,1781194261000,-279.458431,0.00015,2]
[424840457,1781194261000,-6222.006,0.00015,2]
[424840461,1781194261000,-30649.99999999,0.00015,2]
[424840459,1781194261000,-10099.95550719,0.00015,2]
[424840455,1781194261000,-2648.012256,0.00015,2]
[424840458,1781194261000,-1279.40585,0.00015,2]
[424840460,1781194261000,-438.126,0.00015,2]
[424840462,1781194309000,-1407.18009747,0.00013025,2]
[424840463,1781194327000,-1407.18009747,0.00013025,2]
[424840464,1781194345000,-150.0,0.00013024,2]
[424840465,1781194398000,-9999.99,0.00013025,2]
[424840466,1781194416000,-500.0,0.00013025,2]
[424840470,1781194755000,-1634.25376252,0.00012765,2]
[424840471,1781194782000,-2746.52223748,0.00012765,2]
[424840472,1781194837000,-230.657,0.00012765,2]
[424840473,1781194890000,-193.20481554,0.00012769,2]
[424840474,1781194943000,-807.75,0.00012664,2]
[424840475,1781194962000,-292.51,0.00012664,2]
[424840476,1781195015000,-150.0,0.00012432,2]
[424840478,1781195068000,-152.0,0.00011628,7]
[424840479,1781195114000,-571.01,0.00012467,2]
[424840480,1781195167000,-150.0,0.00012583,2]
[424840481,1781195220000,-264.6,0.00012664,2]
[424840491,1781195431000,-567.31125,0.00012018,2]
[424840490,1781195431000,-166.66,0.00011821,2]
[424840492,1781195431000,-10098.19875,0.00012018,2]
[424840494,1781195431000,-200.0,0.00012226,2]
[424840489,1781195431000,-166.66,0.00011577,2]
[424840496,1781195431000,-811.54041097,0.00012231,2]
[424840497,1781195431000,-166.66,0.00012309,2]
[424840493,1781195431000,-166.66,0.00012065,2]
[424840499,1781195431000,-109.5576758,0.000126,4]
[424840498,1781195431000,-166.66,0.00012552,2]
[424840495,1781195431000,-623.20958903,0.00012231,2]
[424840515,1781195437000,-1108.84631463,0.000128,4]
[424840517,1781195437000,-288.28225768,0.00012823,2]
[424840512,1781195437000,-154.38,0.00012762,2]
[424840513,1781195437000,-166.66,0.00012796,2]
[424840514,1781195437000,-91.15368537,0.000128,4]
[424840516,1781195437000,-150.0,0.00012823,2]
[424840510,1781195437000,-800.0,0.000127,4]
[424840511,1781195437000,-150.0,0.00012725,2]
[424840507,1781195437000,-184.526,0.00012667,2]
[424840508,1781195437000,-192.93602553,0.00012673,2]
[424840506,1781195437000,-954.53225523,0.00012667,2]
[424840504,1781195437000,-929.50947294,0.00012667,2]
[424840505,1781195437000,-473.87765831,0.00012667,2]
[424840502,1781195437000,-290.4423242,0.000126,4]
[424840503,1781195437000,-1146.70161352,0.00012667,2]
[424840518,1781195437000,-211.70774232,0.00012823,2]
[424840509,1781195437000,-23.01973532,0.00012673,2]
[424840520,1781195437000,-1000.0,0.00012824,2]
[424840530,1781195437000,-500.0,0.00012824,2]
[424840519,1781195437000,-19999.99,0.00012824,2]
[424840521,1781195437000,-500.0,0.00012824,2]
[424840536,1781195437000,-500.0,0.00012824,2]
[424840535,1781195437000,-500.0,0.00012824,2]
[424840534,1781195437000,-500.0,0.00012824,2]
[424840531,1781195437000,-500.0,0.00012824,2]
[424840533,1781195437000,-500.0,0.00012824,2]
[424840532,1781195437000,-500.0,0.00012824,2]
[424840537,1781195437000,-500.0,0.00012824,2]
[424840538,1781195437000,-500.0,0.00012824,2]
[424840529,1781195437000,-500.0,0.00012824,2]
[424840525,1781195437000,-319.89587484,0.00012824,2]
[424840526,1781195437000,-500.0,0.00012824,2]
[424840527,1781195437000,-500.0,0.00012824,2]
[424840522,1781195437000,-500.0,0.00012824,2]
[424840523,1781195437000,-500.0,0.00012824,2]
[424840524,1781195437000,-500.0,0.00012824,2]
[424840528,1781195437000,-500.0,0.00012824,2]
[424840557,1781195438000,-9999.99,0.00013,2]
[424840554,1781195438000,-1188854.1362,0.00012925,2]
[424840555,1781195438000,-1100.26,0.00012981,2]
[424840560,1781195438000,-500.0,0.00013025,2]
[424840558,1781195438000,-150.0,0.00013025,2]
[424840559,1781195438000,-500.0,0.00013025,2]
[424840562,1781195438000,-500.0,0.00013025,2]
[424840564,1781195438000,-500.0,0.00013025,2]
[424840567,1781195438000,-1100.26,0.00013297,2]
[424840565,1781195438000,-160.0,0.00013048,2]
[424840566,1781195438000,-168.3,0.00013168,2]
[424840556,1781195438000,-500.0,0.00013,2]
[424840561,1781195438000,-500.0,0.00013025,2]
[424840552,1781195438000,-500.0,0.00012925,2]
[424840542,1781195438000,-13022.9722,0.00012825,2]
[424840553,1781195438000,-500.0,0.00012925,2]
[424840551,1781195438000,-500.0,0.00012925,2]
[424840548,1781195438000,-1600.0,0.000129,4]
[424840547,1781195438000,-150.0,0.00012851,2]
[424840545,1781195438000,-2372.57882127,0.00012834,2]
[424840549,1781195438000,-500.0,0.00012925,2]
[424840546,1781195438000,-1293.9276465,0.00012834,2]
[424840568,1781195438000,-2134.93653452,0.00013444,2]
[424840540,1781195438000,-250.0,0.00012824,2]
[424840543,1781195438000,-1500000.0,0.00012825,2]
[424840544,1781195438000,-709.37813543,0.00012834,2]
[424840541,1781195438000,-2000.0,0.00012824,2]
[424840539,1781195438000,-500.0,0.00012824,2]
[424840550,1781195438000,-500.0,0.00012925,2]
[424840571,1781195438000,-2500.0,0.00013699,2]
[424840563,1781195438000,-500.0,0.00013025,2]
[424840569,1781195438000,-1100.26,0.00013614,2]
[424840598,1781195438000,-915697.559487,0.00014593,2]
[424840570,1781195438000,-200.0,0.00013699,2]
[424840600,1781195438000,-110393.4196685,0.00014619,2]
[424840596,1781195438000,-500.0,0.00014592,2]
[424840597,1781195438000,-500.0,0.00014592,2]
[424840593,1781195438000,-3062.1599783,0.00014589,2]
[424840592,1781195438000,-209.3116957,0.00014556,2]
[424840594,1781195438000,-500.0,0.00014592,2]
[424840591,1781195438000,-11360.5113977,0.00014556,2]
[424840588,1781195438000,-500.0,0.00014399,2]
[424840590,1781195438000,-2372.57882118,0.00014528,2]
[424840589,1781195438000,-207.17822883,0.00014399,2]
[424840586,1781195438000,-1100.26,0.0001393,2]
[424840585,1781195438000,-255.0,0.00013926,2]
[424840595,1781195438000,-500.0,0.00014592,2]
[424840599,1781195438000,-500.0,0.00014618,2]
[424840584,1781195438000,-2000.0,0.00013901,2]
[424840583,1781195438000,-1434.75,0.0001376,2]
[424840572,1781195438000,-300.37,0.00013699,2]
[424840573,1781195438000,-500.0,0.00013699,2]
[424840575,1781195438000,-500.0,0.00013699,2]
[424840582,1781195438000,-500.0,0.00013699,2]
[424840574,1781195438000,-500.0,0.00013699,2]
[424840579,1781195438000,-500.0,0.00013699,2]
[424840578,1781195438000,-500.0,0.00013699,2]
[424840576,1781195438000,-500.0,0.00013699,2]
[424840581,1781195438000,-500.0,0.00013699,2]
[424840580,1781195438000,-609.2631297,0.00013699,2]
[424840577,1781195438000,-500.0,0.00013699,2]
[424840587,1781195438000,-250.0,0.00014,2]
[424840634,1781195439000,-4057.09383929,0.00014619,2]
[424840628,1781195439000,-1627.64288617,0.00014619,2]
[424840620,1781195439000,-3211.34857809,0.00014619,2]
[424840635,1781195440000,-510.73884571,0.00014619,2]
[424840643,1781195442000,-510.0,0.00012725,2]
[424840646,1781195442000,-3023.17466647,0.00012725,2]
[424840645,1781195442000,-10502.73700915,0.00012725,2]
[424840644,1781195442000,-1436.979999,0.00012725,2]
[424840683,1781195445000,-327.03999998,0.00012725,2]
[424840707,1781196631000,-171.81,8.98e-05,2]
[424840728,1781196632000,-1678.50759538,0.00011686,10]
[424840729,1781196632000,-863.45985562,0.00011686,10]
[424840724,1781196632000,-500.0,0.00011452,2]
[424840722,1781196632000,-576.32,0.00011306,2]
[424840720,1781196632000,-174.0,0.00011177,2]
[424840719,1781196632000,-264.6,0.00011133,2]
[424840715,1781196632000,-122.90807297,0.00011067,2]
[424840718,1781196632000,-219.11753259,0.00011131,2]
[424840717,1781196632000,-503.70314734,0.00011131,2]
[424840721,1781196632000,-166.66,0.00011185,2]
[424840714,1781196632000,-27.09192703,0.00011067,2]
[424840713,1781196632000,-166.66,0.00010959,2]
[424840711,1781196632000,-500.0,9.878e-05,2]
[424840712,1781196632000,-150.0,0.0001063,2]
[424840709,1781196632000,-153.26977374,9.805e-05,2]
[424840708,1781196632000,-81.16829923,9.805e-05,2]
[424840710,1781196632000,-250.0,9.878e-05,2]
[424840716,1781196632000,-138.02932007,0.00011131,2]
[424840726,1781196632000,-168.3,0.00011682,2]
[424840723,1781196632000,-166.66,0.0001141,2]
[424840727,1781196632000,-150.0,0.00011684,2]
[424840731,1781196632000,-150.0,0.00011708,2]
[424840740,1781196632000,-571.01,0.00012137,2]
[424840741,1781196632000,-500.0,0.00012247,2]
[424840743,1781196632000,-860.85,0.00012523,2]
[424840744,1781196632000,-1898.06305698,0.00012585,2]
[424840746,1781196632000,-500.0,0.00012624,2]
[424840739,1781196632000,-154.38,0.00012097,2]
[424840750,1781196632000,-15795.61416769,0.00012625,2]
[424840748,1781196632000,-535.54398609,0.00012624,2]
[424840737,1781196632000,-300.0,0.00012082,2]
[424840735,1781196632000,-700.78525208,0.00011925,2]
[424840736,1781196632000,-220.05,0.00012082,2]
[424840734,1781196632000,-150.0,0.00011887,2]
[424840725,1781196632000,-166.66,0.00011636,2]
[424840742,1781196632000,-220.05,0.00012384,2]
[424840733,1781196632000,-166.66,0.00011862,2]
[424840730,1781196632000,-200.0,0.00011686,2]
[424840732,1781196632000,-417.81420191,0.00011825,2]
[424840738,1781196632000,-166.66,0.00012088,2]
[424840852,1781196638000,-288.14539784,0.00012625,2]
[424840846,1781196638000,-2507.27306095,0.00012625,2]
[424840848,1781196638000,-355.64450896,0.00012625,2]
[424840841,1781196638000,-152.08943178,0.00011033,2]
[424840843,1781196638000,-9419.44193231,0.00012625,2]
[424840854,1781196638000,-836.85460216,0.00012625,2]
[424840850,1781196638000,-304.75,0.00012625,2]
[424840869,1781196638000,-3991.1300093,0.00012625,2]
[424840860,1781196638000,-903.00691838,0.00012625,2]
[424840871,1781196638000,-303.0,0.00012625,2]
[424840866,1781196638000,-332.17689742,0.00012625,2]
[424840862,1781196638000,-1096.99308162,0.00012625,2]
[424840864,1781196638000,-8914.05891838,0.00012625,2]
[424840858,1781196638000,-1163.14539784,0.00012625,2]
[424841023,1781196639000,-609.50073199,0.00012625,2]
[424841038,1781196640000,-300.0,0.00012625,2]
[424841396,1781196642000,-152.08943177,0.00012525,2]
[424841405,1781196642000,-2034.16013645,0.00012625,2]
[424841400,1781196642000,-102.01467909,0.00012625,2]
[424841398,1781196642000,-593.759403,0.00012561,2]
[424841441,1781196643000,-258.70286,0.00012625,2]
[424841827,1781196646000,-256.0,0.00012625,2]
[424841825,1781196646000,-228.0,0.000126,2]
[424841834,1781196646000,-804.96362764,0.00012625,2]
[424841858,1781196646000,-6269.30631891,0.00012625,2]
[424841844,1781196646000,-11732.24363973,0.00012625,2]
[424841842,1781196646000,-3640.0,0.00012625,2]
[424841861,1781196646000,-7955.00000003,0.00012625,2]
[424841846,1781196646000,-54055.65936027,0.00012625,2]
[424842474,1781197831000,-358.51517898,8e-05,2]
[424842476,1781197831000,-193.20481554,8.13e-05,2]
[424842477,1781197831000,-300.0,8.524e-05,2]
[424842487,1781197831000,-829.47773,0.00010299,2]
[424842486,1781197831000,-300.0,0.00010298,2]
[424842485,1781197831000,-191.47597369,0.000101,2]
[424842475,1781197831000,-250.0,8.065e-05,2]
[424842481,1781197831000,-300.0,8.8e-05,2]
[424842478,1781197831000,-300.0,8.524e-05,2]
[424842484,1781197831000,-200.0,9.761e-05,2]
[424842482,1781197831000,-250.0,8.8e-05,2]
[424842483,1781197831000,-1122.21349472,9.04e-05,2]
[424842479,1781197831000,-300.0,8.524e-05,2]
[424842488,1781197831000,-150.0,0.00010299,2]
[424842490,1781197831000,-108810.1273255,0.000103,4]
[424842492,1781197831000,-3239.99999992,0.000103,4]
[424842489,1781197831000,-250.0,0.00010299,2]
[424842491,1781197831000,-10734.25353234,0.000103,4]
[424842480,1781197831000,-300.0,8.524e-05,2]
[424842493,1781197832000,-38795.72370929,0.000103,4]
[424842496,1781197832000,-2766.0867491,0.000103,4]
[424842495,1781197832000,-840.29675815,0.000103,4]
[424842494,1781197832000,-1356.23989523,0.000103,4]
[424842498,1781197832000,-4870.4,0.000103,4]
[424842500,1781197832000,-1491.9875,0.000103,4]
[424842546,1781197837000,-33007.66785011,0.000103,4]
[424842547,1781197837000,-4007.09066225,0.000103,2]
[424842545,1781197837000,-1395.33024752,0.000103,4]
[424842544,1781197837000,-685.245737,0.000103,4]
[424842573,1781197838000,-9974.72123957,0.00011799,2]
[424842569,1781197838000,-500.0,0.00011499,2]
[424842571,1781197838000,-166.66,0.00011731,2]
[424842572,1781197838000,-2256.54575482,0.00011767,2]
[424842574,1781197838000,-157.57217,0.00011828,2]
[424842577,1781197838000,-157.57217,0.00012028,2]
[424842575,1781197838000,-166.66,0.00011973,2]
[424842578,1781197838000,-165.03,0.00012094,2]
[424842594,1781197838000,-226.0,0.00012214,2]
[424842579,1781197838000,-1607.86,0.00012214,2]
[424842583,1781197838000,-224.0,0.00012214,2]
[424842585,1781197838000,-228.0,0.00012214,2]
[424842587,1781197838000,-228.0,0.00012214,2]
[424842592,1781197838000,-228.0,0.00012214,2]
[424842590,1781197838000,-226.0,0.00012214,2]
[424842598,1781197838000,-222.0,0.00012214,2]
[424842570,1781197838000,-157.57216,0.00011628,2]
[424842576,1781197838000,-234.0,0.00011987,2]
[424842581,1781197838000,-226.0,0.00012214,2]
[424842558,1781197838000,-516.51,0.00010883,2]
[424842566,1781197838000,-420.0,0.00011324,2]
[424842549,1781197838000,-1000.0,0.000103,2]
[424842548,1781197838000,-580.25271602,0.000103,2]
[424842550,1781197838000,-1262.88254727,0.000103,2]
[424842552,1781197838000,-36496.97687387,0.000103,2]
[424842551,1781197838000,-10274.57544219,0.000103,2]
[424842554,1781197838000,-15111.58090946,0.000103,2]
[424842602,1781197838000,-223.0,0.00012214,2]
[424842555,1781197838000,-17853.40555151,0.000103,2]
[424842568,1781197838000,-166.66,0.0001149,2]
[424842556,1781197838000,-159.95,0.000106,2]
[424842560,1781197838000,-166.66,0.00010918,2]
[424842559,1781197838000,-403.88,0.00010909,2]
[424842561,1781197838000,-2256.5457549,0.00011099,2]
[424842563,1781197838000,-5530.0,0.000112,5]
[424842562,1781197838000,-2256.54575482,0.00011099,2]
[424842567,1781197838000,-502.0,0.00011397,2]
[424842565,1781197838000,-255.0,0.00011319,2]
[424842564,1781197838000,-2256.54575482,0.00011244,2]
[424842557,1781197838000,-5530.0,0.000107,3]
[424842596,1781197838000,-222.0,0.00012214,2]
[424842553,1781197838000,-312.03666516,0.000103,2]
[424842600,1781197838000,-225.0,0.00012214,2]
[424842639,1781197838000,-166.66,0.00012215,2]
[424842650,1781197838000,-557.16080543,0.00012316,2]
[424842653,1781197838000,-1758.20916563,0.00012316,2]
[424842651,1781197838000,-1400.52537883,0.00012316,2]
[424842655,1781197838000,-227.0,0.00012316,2]
[424842674,1781197838000,-229.0,0.00012316,2]
[424842658,1781197838000,-227.0,0.00012316,2]
[424842668,1781197838000,-225.0,0.00012316,2]
[424842635,1781197838000,-224.0,0.00012214,2]
[424842672,1781197838000,-223.0,0.00012316,2]
[424842670,1781197838000,-224.0,0.00012316,2]
[424842662,1781197838000,-229.0,0.00012316,2]
[424842664,1781197838000,-229.0,0.00012316,2]
[424842676,1781197838000,-227.0,0.00012316,2]
[424842682,1781197838000,-433.0,0.00012441,2]
[424842680,1781197838000,-157.57216,0.00012428,2]
[424842678,1781197838000,-225.0,0.00012316,2]
[424842601,1781197838000,-221.0,0.00012214,2]
[424842666,1781197838000,-222.0,0.00012316,2]
[424842637,1781197838000,-225.0,0.00012214,2]
[424842660,1781197838000,-225.0,0.00012316,2]
[424842633,1781197838000,-228.0,0.00012214,2]
[424842603,1781197838000,-223.0,0.00012214,2]
[424842647,1781197838000,-2256.54575482,0.00012289,2]
[424842609,1781197838000,-227.0,0.00012214,2]
[424842607,1781197838000,-225.0,0.00012214,2]
[424842611,1781197838000,-224.0,0.00012214,2]
[424842613,1781197838000,-222.0,0.00012214,2]
[424842615,1781197838000,-226.0,0.00012214,2]
[424842621,1781197838000,-222.0,0.00012214,2]
[424842623,1781197838000,-224.0,0.00012214,2]
[424842605,1781197838000,-224.0,0.00012214,2]
[424842625,1781197838000,-226.0,0.00012214,2]
[424842617,1781197838000,-226.0,0.00012214,2]
[424842629,1781197838000,-227.0,0.00012214,2]
[424842627,1781197838000,-221.0,0.00012214,2]
[424842631,1781197838000,-225.0,0.00012214,2]
[424842641,1781197838000,-157.57217,0.00012228,2]
[424842643,1781197838000,-516.51,0.00012243,2]
[424842619,1781197838000,-228.0,0.00012214,2]
[424842645,1781197838000,-403.88,0.00012272,2]
[424842764,1781197839000,-400.0,0.000129,4]
[424842766,1781197839000,-165.03,0.00012901,2]
[424842758,1781197839000,-500.0,0.00012877,2]
[424842751,1781197839000,-160.0,0.00012779,2]
[424842762,1781197839000,-328833.5321198,0.00012878,2]
[424842752,1781197839000,-813.03420582,0.000128,2]
[424842754,1781197839000,-2256.54575482,0.00012811,2]
[424842750,1781197839000,-215.95576085,0.00012779,2]
[424842746,1781197839000,-157.57217,0.00012628,2]
[424842768,1781197839000,-1724.37106009,0.0001299,2]
[424842743,1781197839000,-2000.0,0.00012625,2]
[424842756,1781197839000,-2000.0,0.00012877,2]
[424842760,1781197839000,-500.0,0.00012877,2]
[424842787,1781197839000,-461.0,0.00013667,2]
[424842773,1781197839000,-165.03,0.00013304,2]
[424842781,1781197839000,-1500.0,0.00013568,2]
[424842775,1781197839000,-2256.54575482,0.00013333,2]
[424842778,1781197839000,-1724.37106009,0.00013536,2]
[424842777,1781197839000,-329.696442,0.00013491,2]
[424842783,1781197839000,-516.51,0.00013603,2]
[424842785,1781197839000,-403.88,0.00013636,2]
[424842789,1781197839000,-227.0,0.00013694,2]
[424842791,1781197839000,-1007.22857452,0.00013697,3]
[424842793,1781197839000,-1007.22857452,0.00013697,3]
[424842794,1781197839000,-500.0,0.00013698,2]
[424842749,1781197839000,-200.0,0.00012751,2]
[424842770,1781197839000,-1724.37106009,0.00013263,2]
[424842748,1781197839000,-1724.37106009,0.00012717,2]
[424842691,1781197839000,-165.03,0.00012497,2]
[424842741,1781197839000,-225.0,0.00012625,2]
[424842697,1781197839000,-7636.5231438,0.00012544,2]
[424842701,1781197839000,-25731.6599218,0.00012544,2]
[424842699,1781197839000,-3100.4792852,0.00012544,2]
[424842689,1781197839000,-166.66,0.00012457,2]
[424842685,1781197839000,-1724.37106014,0.00012444,2]
[424842693,1781197839000,-500.0,0.00012525,2]
[424842687,1781197839000,-587.0,0.00012453,2]
[424842695,1781197839000,-3515.1675,0.00012525,2]
[424842797,1781197839000,-171.51496798,0.00013698,2]
[424842705,1781197839000,-227.0,0.000126,2]
[424842718,1781197839000,-229.0,0.00012601,2]
[424842707,1781197839000,-226.0,0.000126,2]
[424842747,1781197839000,-166.66,0.00012699,2]
[424842720,1781197839000,-151.0,0.00012622,2]
[424842703,1781197839000,-40388.3056577,0.00012544,2]
[424842709,1781197839000,-227.0,0.000126,2]
[424842716,1781197839000,-225.0,0.00012601,2]
[424842725,1781197839000,-1082.39488604,0.00012624,3]
[424842714,1781197839000,-222.0,0.00012601,2]
[424842727,1781197839000,-1082.39488604,0.00012624,3]
[424842729,1781197839000,-1082.39488604,0.00012624,3]
[424842737,1781197839000,-153.42585405,0.00012625,2]
[424842739,1781197839000,-226.0,0.00012625,2]
[424842731,1781197839000,-1082.39488604,0.00012624,3]
[424842735,1781197839000,-200.0,0.00012625,2]
[424842733,1781197839000,-260.38261138,0.00012625,2]
[424842723,1781197839000,-151.0,0.00012622,2]
[424842805,1781197839000,-500.0,0.00013698,2]
[424842712,1781197839000,-225.0,0.00012601,2]
[424842799,1781197839000,-574.57860626,0.00013698,2]
[424842869,1781197839000,-500.0,0.00013698,2]
[424842872,1781197839000,-500.0,0.00013698,2]
[424842875,1781197839000,-500.0,0.00013698,2]
[424842885,1781197839000,-500.0,0.00013698,2]
[424842881,1781197839000,-500.0,0.00013698,2]
[424842878,1781197839000,-500.0,0.00013698,2]
[424842892,1781197839000,-1045.97,0.00013698,2]
[424842888,1781197839000,-500.0,0.00013698,2]
[424842895,1781197839000,-1045.97,0.00013698,2]
[424842901,1781197839000,-1045.97,0.00013698,2]
[424842907,1781197839000,-1045.97,0.00013698,2]
[424842898,1781197839000,-1045.97,0.00013698,2]
[424842866,1781197839000,-500.0,0.00013698,2]
[424842904,1781197839000,-1045.97,0.00013698,2]
[424842921,1781197839000,-500.0,0.00013698,2]
[424842915,1781197839000,-500.0,0.00013698,2]
[424842919,1781197839000,-500.0,0.00013698,2]
[424842910,1781197839000,-500.0,0.00013698,2]
[424842927,1781197839000,-500.0,0.00013698,2]
[424842925,1781197839000,-500.0,0.00013698,2]
[424842923,1781197839000,-500.0,0.00013698,2]
[424842930,1781197839000,-500.0,0.00013698,2]
[424842932,1781197839000,-500.0,0.00013698,2]
[424842934,1781197839000,-500.0,0.00013698,2]
[424842937,1781197839000,-500.0,0.00013698,2]
[424842801,1781197839000,-500.0,0.00013698,2]
[424842917,1781197839000,-500.0,0.00013698,2]
[424842853,1781197839000,-500.0,0.00013698,2]
[424842913,1781197839000,-500.0,0.00013698,2]
[424842849,1781197839000,-500.0,0.00013698,2]
[424842862,1781197839000,-214.48,0.00013698,2]
[424842815,1781197839000,-185.2409854,0.00013698,2]
[424842811,1781197839000,-500.0,0.00013698,2]
[424842809,1781197839000,-562.52,0.00013698,2]
[424842807,1781197839000,-500.0,0.00013698,2]
[424842817,1781197839000,-500.0,0.00013698,2]
[424842823,1781197839000,-586.85184904,0.00013698,2]
[424842821,1781197839000,-500.0,0.00013698,2]
[424842819,1781197839000,-500.0,0.00013698,2]
[424842825,1781197839000,-500.0,0.00013698,2]
[424842803,1781197839000,-500.0,0.00013698,2]
[424842837,1781197839000,-500.0,0.00013698,2]
[424842827,1781197839000,-500.0,0.00013698,2]
[424842812,1781197839000,-500.0,0.00013698,2]
[424842831,1781197839000,-500.0,0.00013698,2]
[424842859,1781197839000,-500.0,0.00013698,2]
[424842835,1781197839000,-500.0,0.00013698,2]
[424842851,1781197839000,-500.0,0.00013698,2]
[424842856,1781197839000,-500.0,0.00013698,2]
[424842860,1781197839000,-500.0,0.00013698,2]
[424842845,1781197839000,-500.0,0.00013698,2]
[424842847,1781197839000,-500.0,0.00013698,2]
[424842855,1781197839000,-408.73,0.00013698,2]
[424842841,1781197839000,-500.0,0.00013698,2]
[424842843,1781197839000,-500.0,0.00013698,2]
[424842832,1781197839000,-500.0,0.00013698,2]
[424842828,1781197839000,-500.0,0.00013698,2]
[424842838,1781197839000,-500.0,0.00013698,2]
[424842994,1781197840000,-168.71,0.00013699,2]
[424842990,1781197840000,-1590.28,0.00013699,2]
[424842973,1781197840000,-500.0,0.00013698,2]
[424842979,1781197840000,-500.0,0.00013698,2]
[424842992,1781197840000,-200.0,0.00013699,2]
[424842977,1781197840000,-529.77545111,0.00013698,2]
[424842996,1781197840000,-188.14874168,0.00013699,10]
[424843016,1781197840000,-2256.54575482,0.00013856,2]
[424843004,1781197840000,-150.0,0.000137,2]
[424843002,1781197840000,-150.0,0.000137,2]
[424843000,1781197840000,-567.6959033,0.00013699,2]
[424843012,1781197840000,-163.68,0.000137,2]
[424843008,1781197840000,-150.0,0.000137,2]
[424843010,1781197840000,-278.60891467,0.000137,2]
[424842971,1781197840000,-500.0,0.00013698,2]
[424842998,1781197840000,-489.44051512,0.00013699,2]
[424842986,1781197840000,-500.0,0.00013698,2]
[424842949,1781197840000,-500.0,0.00013698,2]
[424842968,1781197840000,-275.16598363,0.00013698,2]
[424843014,1781197840000,-1724.37106009,0.00013808,2]
[424842942,1781197840000,-500.0,0.00013698,2]
[424842947,1781197840000,-542.16653509,0.00013698,2]
[424842940,1781197840000,-500.0,0.00013698,2]
[424842945,1781197840000,-500.0,0.00013698,2]
[424842952,1781197840000,-500.0,0.00013698,2]
[424842954,1781197840000,-500.0,0.00013698,2]
[424842970,1781197840000,-500.0,0.00013698,2]
[424842957,1781197840000,-500.0,0.00013698,2]
[424842964,1781197840000,-500.0,0.00013698,2]
[424842962,1781197840000,-500.0,0.00013698,2]
[424842966,1781197840000,-500.0,0.00013698,2]
[424842983,1781197840000,-500.0,0.00013698,2]
[424842981,1781197840000,-500.0,0.00013698,2]
[424842975,1781197840000,-500.0,0.00013698,2]
[424842988,1781197840000,-532.44926437,0.00013698,2]
[424842960,1781197840000,-500.0,0.00013698,2]
[424843022,1781197840000,-1724.37106009,0.00014081,2]
[424843006,1781197840000,-150.0,0.000137,2]
[424843018,1781197840000,-2000.0,0.00013871,2]
[424843107,1781197840000,-849.93833608,0.000149,2]
[424843118,1781197840000,-498.0,0.00014959,2]
[424843110,1781197840000,-862.618431,0.000149,2]
[424843113,1781197840000,-539.43683523,0.00014915,2]
[424843121,1781197840000,-516.51,0.00014964,2]
[424843124,1781197840000,-1045.97,0.00014969,2]
[424843116,1781197840000,-9069.01490494,0.00014917,2]
[424843101,1781197840000,-2256.54575482,0.000149,2]
[424843127,1781197840000,-7508.2872585,0.00014969,2]
[424843132,1781197840000,-500.0,0.00014999,2]
[424843146,1781197840000,-185.14149454,0.00014999,2]
[424843140,1781197840000,-210.0,0.00014999,2]
[424843138,1781197840000,-500.0,0.00014999,2]
[424843144,1781197840000,-550.0,0.00014999,2]
[424843142,1781197840000,-500.0,0.00014999,2]